Cogmind - Beta 16 @@@ ROGUE MODE // 2025.10.30 @ 05:06:37 Player: Demo Result: Destroyed by Y-72 Warden with Quantum Rifle Performance ------------- Evolutions (7) 3500 Regions Visited (13) 2600 Robots Destroyed (160) 800 Value Destroyed (6702) 6702 Prototype IDs (11) 220 Alien Tech Used (0) 0 Bonus (2174) 2174 TOTAL SCORE: 15996 Bonus ------- Pacifist 200 High Alert Combat Kills 1089 Follower Combat Kills 1527 Entered DSFs 500 Friendly Fire -1142 Cogmind --------- Core Integrity 0/1300 Matter 295/300 Energy 96/100 System Corruption 19% Temperature Cool (9) Movement Flying (40) Location -3/Research Parts ------- > --- POWER (2) -------- (None) > --- PROPULSION (4) --- Impulse Thruster > --- UTILITY (10) ----- Advanced Coolant Injector Armor Integrity Analyzer > --- WEAPON (5) ------- (None) > --- INVENTORY (5) ---- Experimental Cooling System Matter Compressor (27) Experimental Signal Interpreter Railgun Improved Plasma Cutter Peak State ------------ > --- POWER ------------ Light Antimatter Reactor Light Quantum Reactor > --- PROPULSION ------- Myomer Leg Centrium Leg Heavy Shield Leg > --- UTILITY ---------- Experimental Cooling System Experimental Cooling System Advanced Coolant Injector Large Storage Unit Improved Targeting Computer Advanced Targeting Computer Armor Integrity Analyzer Advanced Recoil Stabilizer Improved Phase Shifter Improved Medium Armor Plating > --- WEAPON ----------- Railgun Railgun Railgun Railgun Railgun > --- INVENTORY -------- Centrium Wheel Power Amplifier Advanced Power Amplifier Advanced Coolant Injector Advanced Coolant Injector Matter Compressor Experimental Signal Interpreter Graphene Brace Advanced Variable Charge Gun Railgun Railgun Railgun Scatter Rocket Array Smartbomb Launcher [Rating: 145] Favorites ----------- Power Light Quantum Reactor Engine Heavy Deuterium Engine Power Core Enhanced Nuclear Core Reactor Light Quantum Reactor Propulsion Carbon-fiber Leg Treads Light Treads Leg Carbon-fiber Leg Wheel Wheel Flight Unit Impulse Thruster Utility Armor Integrity Analyzer Device Graphene Brace Storage Large Storage Unit Processor Armor Integrity Analyzer Protection Hardened Medium Armor Plating Weapon Railgun Energy Gun Beamcaster Energy Cannon Compact HERF Cannon Ballistic Gun Railgun Ballistic Cannon Enhanced Hardcell Cannon Launcher Grenade Launcher Impact Weapon Heavy Hammer Slashing Weapon Axe Build | -11 -10 -9 -8 -7 -7 -7 -6 -5 -5 -4 -4 -4 -3 ------- Run | Yrd Mat Mat Mat Fac Was Fac Fac Fac DSF Fac Was Fac Res Slots Evolved 14 | . . 2 2 2 . . 2 2 . 2 . . 2 Power 1 | . . . . . . . . 1 . . . . . Propulsion 2 | . . . . 1 . . . . . 1 . . . Utility 8 | . . 1 . 1 . . 2 1 . 1 . . 2 Weapon 3 | . . 1 2 . . . . . . . . . . Parts Attached 194 | 2 . 6 32 8 10 4 5 1 24 19 22 25 36 Power 25 | . . 1 5 2 . 1 . 1 4 2 3 2 4 Engine 8 | . . 1 3 2 . . . 1 1 . . . . Core 7 | . . . 2 . . 1 . . 3 . . . 1 Reactor 10 | . . . . . . . . . . 2 3 2 3 Propulsion 32 | 2 . . 5 2 2 . . . 3 5 3 2 8 Treads 4 | 2 . . 2 . . . . . . . . . . Leg 24 | . . . 3 2 2 . . . 3 5 3 2 4 Wheel 3 | . . . . . . . . . . . . . 3 Hover . | . . . . . . . . . . . . . . Flight 1 | . . . . . . . . . . . . . 1 Utility 72 | . . 4 7 1 3 . 5 . 6 9 10 14 13 Device 48 | . . 3 4 . 1 . 4 . 5 7 8 6 10 Storage 5 | . . . 1 . . . . . . 1 . 3 . Processor 9 | . . 1 1 . 1 . 1 . 1 . . 2 2 Hackware . | . . . . . . . . . . . . . . Protection 10 | . . . 1 1 1 . . . . 1 2 3 1 Artifact . | . . . . . . . . . . . . . . Weapon 65 | . . 1 15 3 5 3 . . 11 3 6 7 11 Energy Gun 24 | . . . 4 1 3 3 . . 5 3 4 1 . Energy Cannon 1 | . . . . . . . . . . . 1 . . Ballistic Gun 25 | . . . 3 1 1 . . . 5 . . 5 10 Ballistic Cannon 4 | . . . 1 . . . . . 1 . 1 1 . Launcher 8 | . . . 5 1 1 . . . . . . . 1 Special Weapon . | . . . . . . . . . . . . . . Impact Weapon 1 | . . 1 . . . . . . . . . . . Slashing Weapon 2 | . . . 2 . . . . . . . . . . Piercing Weapon . | . . . . . . . . . . . . . . Special Melee Weapon . | . . . . . . . . . . . . . . Unidentified Prototypes 11 | . . . 1 1 1 3 . . . 1 . 2 2 Parts Lost 89 | . . 4 8 . 3 . . . 12 18 . . 44 Power 9 | . . 1 1 . . . . . . 2 . . 5 Propulsion 19 | . . 2 . . 2 . . . 3 4 . . 8 Utility 27 | . . 1 2 . . . . . 4 6 . . 14 Weapon 34 | . . . 5 . 1 . . . 5 6 . . 17 Highest Loss Streak 29 | . . 4 5 . 3 . . . 10 17 . . 29 To Critical Strikes . | . . . . . . . . . . . . . . Average Backups 7 | . 1 5 9 9 5 5 4 4 4 4 4 9 12 Power . | . . . . . . . . . 1 . 1 . . Propulsion . | . . . 3 2 1 . . . . . . . 1 Utility 2 | . . . 3 5 1 1 1 1 1 1 1 4 4 Weapon 3 | . 1 5 1 1 2 2 2 2 1 3 2 4 6 Tool/Special . | . . . . . . . . . . . . . . Unused Backups 31 | . . . 10 2 6 1 1 . . 2 . 1 8 Power . | . . . . . . . . . . . . . . Propulsion 2 | . . . 2 . . . . . . . . . . Utility 21 | . . . 5 2 4 1 1 . . 1 . 1 6 Weapon 7 | . . . 3 . 2 . . . . 1 . . 1 Tool/Special 1 | . . . . . . . . . . . . . 1 Average Slot Usage (%) 88 | . 28 49 93 99 94 100 99 99 84 82 82 93 86 Engine 2 | . . 4 4 1 6 3 . 5 4 . 1 . . Core 2 | . . . 3 5 . 3 6 5 4 2 . . 2 Reactor 3 | . . . . . . . . . . 5 7 10 4 Treads 1 | . 28 12 3 . . . . . . . . . . Leg 15 | . . . 13 23 22 23 20 17 13 15 13 15 13 Device 15 | . . 14 6 7 3 7 19 22 19 20 21 18 20 Storage 2 | . . . 8 7 . . . . . . . 4 4 Processor 12 | . . 8 9 7 15 15 13 11 15 14 10 11 14 Protection 3 | . . . 1 6 7 7 6 5 . 1 2 6 1 Energy Gun 12 | . . . 10 19 20 35 33 29 17 3 20 5 . Ballistic Gun 11 | . . . 9 10 8 2 . . 3 17 . 20 20 Launcher 2 | . . . 13 . 1 . . . . . . . . Slashing Weapon 1 | . . . 6 6 4 . . . . . . . . Peak Build Rating 145 | 2 2 9 30 41 54 55 66 74 85 111 124 134 145 Average Rating 77 | 1 1 6 23 38 46 54 63 72 65 89 105 124 122 On Entrance 46 | . 2 2 5 30 40 54 55 66 73 68 16 113 129 Avg Prop Armor Cover (%) 30 | 41 41 32 30 . . . . . . 4 38 . 6 Naked Turns . | . . . . . . . . . . . . . . Heaviest Build 109 | . . 8 32 46 44 41 39 55 58 71 97 97 109 Greatest Support 115 | 3 3 9 46 48 51 51 51 51 51 80 110 115 115 Greatest Overweight (x) 7 | . . . 1 . . . . 1 1 2 2 . 7 Average Overweight (x) . | . . . . . . . . . . . . . . Largest Inventory Capacity 15 | 5 5 5 10 10 10 5 5 5 5 5 5 15 15 Average Capacity 8 | 5 5 5 9 10 5 5 5 5 5 5 5 10 14 Most Carried 15 | . 5 5 10 10 10 5 5 5 5 5 5 15 15 Average Carried 7 | . 2 5 9 9 4 4 4 4 4 4 4 9 13 Final Capacity 15 | 5 5 5 10 10 5 5 5 5 5 5 5 15 5 Final Carried 15 | . 5 5 10 10 5 5 5 5 5 3 5 15 5 Class Distribution -------------------- 40% | Scavenger-Gunner 24% | Bomber 21% | Gunner 8% | Mutant Dominant Class ---------------- Mutant | -10/Materials Mutant | -9/Materials Bomber | -8/Materials Bomber | -7/Factory Bomber | -7/Waste Gunner | -7/Factory Gunner | -6/Factory Gunner | -5/Factory Scavenger-Gunner | -5/DSF Scavenger-Gunner | -4/Factory Scavenger-Gunner | -4/Waste Scavenger-Gunner | -4/Factory Scavenger-Gunner | -3/Research Resources | -11 -10 -9 -8 -7 -7 -7 -6 -5 -5 -4 -4 -4 -3 ----------- Run | Yrd Mat Mat Mat Fac Was Fac Fac Fac DSF Fac Was Fac Res Matter Collected 6499 | 30 . 180 853 231 144 106 50 38 234 545 445 1285 2358 Remotely 545 | . . . . . . . . . . . . . 545 Salvage Created 8221 | . . 289 1492 497 222 312 328 . 527 846 342 1091 2275 Parts 341 | . . 9 75 21 . 14 10 . 31 46 11 37 87 Haulers Intercepted 11 | . . . 4 1 . 2 1 . . . . 3 . Recyclers Shooed 10 | . . . 3 . . . . . . . . 1 6 Parts Field Recycled 2 | . . . . . . . . . . . . . 2 Retrieved Matter 10 | . . . . . . . . . . . . . 10 Parts Self-Destructed . | . . . . . . . . . . . . . . Prevented . | . . . . . . . . . . . . . . Parts Restored . | . . . . . . . . . . . . . . Kills | -11 -10 -9 -8 -7 -7 -7 -6 -5 -5 -4 -4 -4 -3 ------- Run | Yrd Mat Mat Mat Fac Was Fac Fac Fac DSF Fac Was Fac Res Combat Hostiles Destroyed 111 | . . 7 28 8 1 2 3 . 11 9 . 8 34 Melee 6 | . . 4 2 . . . . . . . . . . Guns 74 | . . . 13 7 . 1 3 . 8 9 . 8 25 AOE 26 | . . . 13 1 . . . . 3 . . . 9 Classes Destroyed 20 | . . 5 4 1 1 . 1 . 3 2 . 1 2 Worker 10 | . . 2 2 . . 1 . . . 4 . . 1 Builder 8 | . . 1 5 . . . . . . . . . 2 Tunneler 1 | . . . . . . . . . . 1 . . . Hauler 11 | . . . 4 1 . 2 1 . . . . 3 . Recycler 11 | . . . 3 1 . 1 . . . 1 . 1 4 Mechanic 2 | . . . . . . . . . . 2 . . . Operator 3 | . . . 1 . . . 1 . . 1 . . . Watcher 1 | . . . 1 . . . . . . . . . . Swarmer 14 | . . 3 4 2 . . . . 5 . . . . Cutter 2 | . . . . . . . . . 2 . . . . Grunt 60 | . . 3 20 5 . 1 2 . 2 7 . . 20 Brawler 2 | . . . . 1 . . . . . . . . 1 Duelist 2 | . . . . . . . 1 . . . . . 1 Protector 2 | . . . . . . . . . . . . . 2 Sentry 11 | . . 1 4 . . 1 . . . 1 . 2 2 Hunter 7 | . . . . . . . . . . . . 4 3 Programmer 8 | . . . . . . . . . 1 1 . 2 4 Heavy 1 | . . . . . . . . . 1 . . . . Behemoth 1 | . . . . . . . . . . . . . 1 Compactor 1 | . . . . . 1 . . . . . . . . Surgeon 1 | . . . . . . . . . . . . 1 . Thug 1 | . . . . . . . . . . . . 1 . Best Kill Streak 10 | . . 9 10 6 1 2 2 . 6 6 . 3 10 Combat Bots Only 9 | . . 7 5 5 1 1 2 . 6 4 . 2 9 Max Kills in Single Turn 4 | . . 1 4 2 1 1 1 . 2 2 . 1 3 Gunslinging 2 | . . . 2 . . . . . . . . . 1 Exploded 4 | . . . 4 1 . . . . 2 . . . 3 Melee 1 | . . 1 1 . . . . . . . . . . Uniques/NPCs Destroyed . | . . . . . . . . . . . . . . Combat | -11 -10 -9 -8 -7 -7 -7 -6 -5 -5 -4 -4 -4 -3 -------- Run | Yrd Mat Mat Mat Fac Was Fac Fac Fac DSF Fac Was Fac Res Hostile Shots Fired 1083 | . 9 73 87 12 4 21 7 . 67 181 . 61 561 Missed 348 | . 1 18 29 2 1 11 3 . 23 57 . 23 180 Hits 735 | . 8 55 58 10 3 10 4 . 44 124 . 38 381 Melee 3 | . . . . . 3 . . . . . . . . Projectile 732 | . 8 55 58 10 . 10 4 . 44 124 . 38 381 AOE 3 | . . . . . . . . . 2 . . 1 . Critical Strikes 52 | . . 2 6 1 2 . 1 . 2 8 . 4 26 Actively Blocked 29 | . . . . . . . . . . 7 . 2 20 Part Disruptions 7 | . . . . . . . . . . 2 . 1 4 Damage Taken 15405 | . 98 626 1028 156 99 78 78 . 1434 3035 . 913 7860 Core 2695 | . 21 317 137 46 . 22 . . 112 718 . . 1322 Absorbed by Shields . | . . . . . . . . . . . . . . Ignored by Resistances 95 | . . . . . . . . . . . . . 95 Regen/Repaired (Parts) 1304 | . . . . 45 136 6 . . . 52 566 324 175 Core Remaining (%) 75 | 100 91 20 75 . . 90 100 . 88 . . 37 . Volleys Fired 276 | . . . 39 15 2 19 9 . 28 38 10 32 84 Largest 5 | . . . 4 4 5 5 5 . 5 5 5 5 5 Hottest 330 | . . . 176 181 211 327 327 . 327 310 295 330 175 Shots Fired 1002 | . . . 119 54 10 42 45 . 79 105 22 159 367 Gun 947 | . . . 82 52 8 42 45 . 77 104 17 159 361 Cannon 10 | . . . 5 . . . . . . . 5 . . Launcher 45 | . . . 32 2 2 . . . 2 1 . . 6 Special . | . . . . . . . . . . . . . . Kinetic 663 | . . . 46 26 4 . . . . 82 . 144 361 Thermal 222 | . . . 41 26 4 23 27 . 47 22 17 15 . Explosive 45 | . . . 32 2 2 . . . 2 1 . . 6 Electromagnetic 72 | . . . . . . 19 18 . 30 . 5 . . Robot Hit Streak 22 | . . . 22 11 4 17 21 . 21 11 8 6 17 Robot Miss Streak 5 | . . . 2 3 1 1 1 . 3 5 1 4 5 Penetration Max 2 | . . . . . . . . . . 1 . 1 2 Secondary Targets 24 | . . . 5 2 . . 1 . 4 4 . 2 6 Max Gunslinging Chain 2 | . . . 2 1 . . 1 . 1 1 . 1 1 Shots Hit Robots 642 | . . 20 74 32 8 25 29 . 53 76 16 87 222 Core Hits 424 | . . 4 83 18 1 8 16 . 27 38 10 36 183 Critical Kills 4 | . . . . . . . . . . . . 3 1 Critical Parts Destroyed 17 | . . 4 . . . . . . . 1 . 2 10 Critical Strikes 30 | . . 4 4 . . 1 1 . 1 2 . 6 11 Burn 7 | . . . 2 . . 1 1 . 1 1 . 1 . Destroy 17 | . . . . . . . . . . 1 . 5 11 Smash 4 | . . 4 . . . . . . . . . . . Sever 2 | . . . 2 . . . . . . . . . . Melee Attacks 55 | . . 29 18 8 . . . . . . . . . Impact 29 | . . 29 . . . . . . . . . . . Slashing 26 | . . . 18 8 . . . . . . . . . Piercing . | . . . . . . . . . . . . . . Sneak Attacks 6 | . . 3 3 . . . . . . . . . . Combat Hostiles . | . . . . . . . . . . . . . . Follow-up Attacks . | . . . . . . . . . . . . . . Damage Inflicted 22773 | . . 819 3004 742 257 650 837 . 1403 2648 495 2459 9459 Guns 14693 | . . . 883 556 115 650 721 . 1134 2161 225 2320 5928 Cannons 197 | . . . 24 . . . . . . . 173 . . Explosions 6436 | . . . 1603 186 142 . 99 . 269 487 . 139 3511 Melee 1309 | . . 819 490 . . . . . . . . . . Ramming 138 | . . . 4 . . . 17 . . . 97 . 20 Kinetic 10480 | . . . 388 281 44 . . . . 1784 . 2055 5928 Thermal 3718 | . . . 519 275 71 306 430 . 728 760 225 404 . Explosive 5859 | . . . 1603 186 142 . 44 . 269 104 . . 3511 Electromagnetic 1269 | . . . . . . 344 346 . 406 . 173 . . Impact 819 | . . 819 . . . . . . . . . . . Slashing 490 | . . . 490 . . . . . . . . . . Piercing . | . . . . . . . . . . . . . . Highest Corruption 19 | . . . . . . 2 . . . 17 17 18 19 Average Corruption 13 | . . . . . . 2 . . . 13 17 17 5 Corruption Purged . | . . . . . . . . . . . . . . Corruption Blocked . | . . . . . . . . . . . . . . Effects 96 | . . . . . . 4 . . . 6 28 47 11 Message Errors 32 | . . . . . . 1 . . . 3 9 16 3 Matter Fused 12 | . . . . . . 1 . . . . 6 4 1 Heat Flow Errors 14 | . . . . . . . . . . . 6 6 2 Energy Discharges 17 | . . . . . . 1 . . . 1 3 10 2 Parts Rejected 2 | . . . . . . . . . . . . 2 . Parts Fused 1 | . . . . . . . . . . . . 1 . Data Loss (minor) 7 | . . . . . . . . . . 1 1 5 . Data Loss (major) 2 | . . . . . . 1 . . . . 1 . . Misfires 1 | . . . . . . . . . . . . 1 . Misdirections 2 | . . . . . . . . . . 1 . . 1 Weapon Failures 6 | . . . . . . . . . . . 2 2 2 Overload Shots 2 | . . . . . . . . . . 2 . . . Overflow Damage 803 | . . 393 107 21 . . . . 2 79 38 35 128 Projectiles 38 | . . . . . . . . . . . 38 . . Explosions 332 | . . . 67 21 . . . . 2 79 . 35 128 Melee 433 | . . 393 40 . . . . . . . . . . Knockbacks 2 | . . 2 . . . . . . . . . . . Impact 2 | . . 2 . . . . . . . . . . . Kinetic . | . . . . . . . . . . . . . . Secondary . | . . . . . . . . . . . . . . Self-Inflicted Damage 1011 | . . . 172 . . . . . 67 506 . . 266 Shots 22 | . . . 6 . . . . . 3 8 . . 5 Rammed 7 | . . . . . . . . . . . . . 7 Targets Rammed 22 | . . . 1 . . . 1 . . . 13 . 7 Kicked 15 | . . . 1 . . . 1 . . . 13 . . Crushed . | . . . . . . . . . . . . . . Highest Temperature 367 | . . 4 301 155 98 367 198 . 189 315 254 304 137 Average Temperature 93 | . . 4 93 60 50 140 116 . 45 128 111 71 26 Received Heat Transfer 2118 | . 57 198 549 99 . 24 54 . 135 336 . 81 585 Siege Activations . | . . . . . . . . . . . . . . Martial Activations . | . . . . . . . . . . . . . . Shielding Activations . | . . . . . . . . . . . . . . Robots Disrupted . | . . . . . . . . . . . . . . Combat Hostiles . | . . . . . . . . . . . . . . Robots Corrupted 6 | . . 5 . . . 1 . . . . . . . Combat Hostiles 4 | . . 3 . . . 1 . . . . . . . Parts Fried 13 | . . 6 . . . 2 3 . 2 . . . . Impact Corruptions 17 | . . 17 . . . . . . . . . . . Robots Melted 2 | . . . . . 1 . . . 1 . . . . Combat Hostiles 1 | . . . . . 1 . . . . . . . . Parts Melted 5 | . . . 1 . . . 3 . 1 . . . . Heat Transferred 6705 | . . . 1258 555 148 555 766 . 1443 918 444 618 . Parts Sabotaged . | . . . . . . . . . . . . . . Parts Stolen . | . . . . . . . . . . . . . . Parts Stripped . | . . . . . . . . . . . . . . Power Chain Reactions 1 | . . . . . . . 1 . . . . . . Alert | -11 -10 -9 -8 -7 -7 -7 -6 -5 -5 -4 -4 -4 -3 ------- Run | Yrd Mat Mat Mat Fac Was Fac Fac Fac DSF Fac Was Fac Res Maximum Alert Level 3 | . . . 2 1 . 2 2 1 1 2 1 3 3 Low Security (%) 37 | 100 100 100 28 85 100 6 . . 63 2 93 36 . Level 1 30 | . . . 51 14 . 74 22 100 37 51 6 23 20 Level 2 25 | . . . 19 . . 18 77 . . 46 . 35 49 Level 3 5 | . . . . . . . . . . . . 4 30 Level 4 . | . . . . . . . . . . . . . . Level 5 . | . . . . . . . . . . . . . . High Security . | . . . . . . . . . . . . . . Max Security . | . . . . . . . . . . . . . . Sterilizations 1 | . . . . . . . . . 1 . . . . Peak Influence 835 | . . 156 469 339 126 562 634 296 334 624 215 761 835 Initial 393 | . . . 61 199 115 . 252 296 161 175 215 . 393 Average 308 | . . 77 284 177 19 318 506 264 195 398 79 329 587 Influence Increases 6661 | . . 276 868 320 36 821 485 5 373 947 2 1355 1173 Destroy 0b10 Robot/C 2860 | . . 140 560 160 . 360 120 . 240 180 . 440 660 Destroy 0b10 Robot/NC 280 | . . 15 80 10 . 30 15 . 5 45 . 35 45 Destroy Leader 638 | . . 30 120 32 . 88 22 . 40 40 . 136 130 Allied During Kill 788 | . . . . . . 303 46 . 9 . . 430 . Successful Hack 113 | . . . 2 75 . . . 5 . 4 . 27 . Disable Machine 555 | . . 15 30 15 . . 45 . . 270 . 135 45 Anti-Garrison Action 400 | . . . . . . . 200 . . 200 . . . Destroy Structure 742 | . . 1 61 28 36 25 37 . 34 148 2 152 218 Lose Combat Pursuer 285 | . . 75 15 . . 15 . . 45 60 . . 75 Influence Decreases 6035 | . . 130 575 430 365 306 393 381 270 665 618 606 1296 Entered New Map 2099 | . . . 85 240 214 . 263 311 70 159 401 . 356 Time Decay 2566 | . . 90 410 190 81 206 130 70 . 326 217 376 470 Lost Part 890 | . . 40 80 . 30 . . . 120 180 . . 440 Lost Ally 480 | . . . . . 40 100 . . 80 . . 230 30 Squads Dispatched 47 | . . 1 5 5 . 9 1 2 2 2 . 5 15 Investigation 14 | . . . 1 4 . 1 1 2 . 1 . 1 3 Extermination 7 | . . . . . . 1 . . . 1 . 2 3 Reinforcement 17 | . . 1 3 . . 3 . . 2 . . 2 6 Assault 3 | . . . . . . 1 . . . . . . 2 Garrison 6 | . . . 1 1 . 3 . . . . . . 1 Intercept . | . . . . . . . . . . . . . . Searches Triggered . | . . . . . . . . . . . . . . Construction Impeded 5 | . . . 1 . . . . . . . . . 4 Haulers Reinforced 4 | . . . . . . 2 . . . . . 1 1 Active Scanning Responses . | . . . . . . . . . . . . . . Cargo Convoy Interrupts . | . . . . . . . . . . . . . . Stealth | -11 -10 -9 -8 -7 -7 -7 -6 -5 -5 -4 -4 -4 -3 --------- Run | Yrd Mat Mat Mat Fac Was Fac Fac Fac DSF Fac Was Fac Res Distress Signals 12 | . 1 . 2 . . 1 . . . 1 . 1 6 Communications Jammed . | . . . . . . . . . . . . . . Distress Signals . | . . . . . . . . . . . . . . Times Spotted 199 | . 4 14 37 11 5 10 6 . 13 25 . 18 56 Peak Tracking Total 10 | . 3 7 6 3 6 5 2 . 6 10 . 2 9 Tactical Retreats 12 | . . 4 1 . . 1 . . 1 2 . . 3 Traps | -11 -10 -9 -8 -7 -7 -7 -6 -5 -5 -4 -4 -4 -3 ------- Run | Yrd Mat Mat Mat Fac Was Fac Fac Fac DSF Fac Was Fac Res Traps Triggered 7 | . 1 . . 1 . . . 1 1 1 . 1 1 Indirectly . | . . . . . . . . . . . . . . Trap Hack Attempts . | . . . . . . . . . . . . . . Triggered . | . . . . . . . . . . . . . . Disarmed . | . . . . . . . . . . . . . . Reprogrammed . | . . . . . . . . . . . . . . Reused . | . . . . . . . . . . . . . . Traps Extracted . | . . . . . . . . . . . . . . Installed . | . . . . . . . . . . . . . . Triggered . | . . . . . . . . . . . . . . Machines | -11 -10 -9 -8 -7 -7 -7 -6 -5 -5 -4 -4 -4 -3 ---------- Run | Yrd Mat Mat Mat Fac Was Fac Fac Fac DSF Fac Was Fac Res Machines Disabled 37 | . . 1 2 1 . . 3 . . 18 . 9 3 Max in Single Turn 13 | . . 1 1 1 . . 3 . . 13 . 3 1 Garrison Access 4 | . . . 1 . . . 1 . . 1 . . 1 Machines Repaired . | . . . . . . . . . . . . . . Machines Dismantled . | . . . . . . . . . . . . . . Machines Sabotaged . | . . . . . . . . . . . . . . Overloaded Fab Kills . | . . . . . . . . . . . . . . Hacking | -11 -10 -9 -8 -7 -7 -7 -6 -5 -5 -4 -4 -4 -3 --------- Run | Yrd Mat Mat Mat Fac Was Fac Fac Fac DSF Fac Was Fac Res Machines Accessed 23 | . . . 3 4 . 1 1 3 . 5 . 2 4 Terminals 4 | . . . . 1 . . . 2 . . . 1 . Fabricators 8 | . . . . 1 . 1 . 1 . 3 . 1 1 Repair Stations 3 | . . . . 1 . . . . . 1 . . 1 Recycling Units 2 | . . . 1 . . . . . . . . . 1 Scanalyzers 2 | . . . 1 1 . . . . . . . . . Garrison Access 4 | . . . 1 . . . 1 . . 1 . . 1 Total Hacks 59 | . . . 8 12 . 2 1 5 . 18 . 3 10 Successful 23 | . . . 6 4 . . 1 1 . 9 . 1 1 Failed 36 | . . . 2 8 . 2 . 4 . 9 . 2 9 Catastrophic 9 | . . . . 2 . 1 . 1 . 2 . 1 2 Database Lockouts . | . . . . . . . . . . . . . . Manual 29 | . . . . 5 . 2 1 2 . 12 . 3 4 Terminals 8 | . . . . 3 . . . 3 . . . 2 . Fabricators 23 | . . . . 3 . 2 . 2 . 13 . 1 2 Repair Stations 7 | . . . . 1 . . . . . 4 . . 2 Recycling Units 4 | . . . 2 . . . . . . . . . 2 Scanalyzers 9 | . . . 4 5 . . . . . . . . . Garrison Access 8 | . . . 2 . . . 1 . . 1 . . 4 Terminal Hacks 3 | . . . . 1 . . . 1 . . . 1 . Open DSF 1 | . . . . . . . . 1 . . . . . Branch Access Points 1 | . . . . 1 . . . . . . . . . Transport Status 1 | . . . . . . . . . . . . 1 . Fabricator Hacks 1 | . . . . . . . . . . 1 . . . Network Status 1 | . . . . . . . . . . 1 . . . Repair Station Hacks 3 | . . . . . . . . . . 3 . . . Scan Component 2 | . . . . . . . . . . 2 . . . Repair 1 | . . . . . . . . . . 1 . . . Recycling Unit Hacks 1 | . . . 1 . . . . . . . . . . Retrieve Components 1 | . . . 1 . . . . . . . . . . Scanalyzer 6 | . . . 4 2 . . . . . . . . . Retrieve Study 6 | . . . 4 2 . . . . . . . . . Garrison Access Hacks 1 | . . . 1 . . . . . . . . . . Seal Access 1 | . . . 1 . . . . . . . . . . Unauthorized Hacks 8 | . . . . 1 . . 1 . . 5 . . 1 Terminals . | . . . . . . . . . . . . . . Fabricators 4 | . . . . . . . . . . 4 . . . Liberate 2 | . . . . . . . . . . 2 . . . Fabnet 2 | . . . . . . . . . . 2 . . . Repair Stations 2 | . . . . 1 . . . . . . . . 1 Patch 2 | . . . . 1 . . . . . . . . 1 Recycling Units . | . . . . . . . . . . . . . . Scanalyzers . | . . . . . . . . . . . . . . Garrison Access 2 | . . . . . . . 1 . . 1 . . . Jam 2 | . . . . . . . 1 . . 1 . . . Data Cores Recovered . | . . . . . . . . . . . . . . Used . | . . . . . . . . . . . . . . Hacking Detections 18 | . . . 2 3 . 1 . 2 . 4 . 2 4 Full Trace Events 8 | . . . 1 3 . 1 . 1 . . . . 2 Feedback Events . | . . . . . . . . . . . . . . Feedback Blocked . | . . . . . . . . . . . . . . Robot Schematics Acquired . | . . . . . . . . . . . . . . Robots Built . | . . . . . . . . . . . . . . Authchips . | . . . . . . . . . . . . . . Time . | . . . . . . . . . . . . . . Total Robot Build Rating . | . . . . . . . . . . . . . . Part Schematics Acquired . | . . . . . . . . . . . . . . Parts Built . | . . . . . . . . . . . . . . Authchips . | . . . . . . . . . . . . . . Time . | . . . . . . . . . . . . . . Total Part Build Rating . | . . . . . . . . . . . . . . Part Studies Acquired 5 | . . . 3 2 . . . . . . . . . Parts Repaired 1 | . . . . . . . . . . 1 . . . Time 86 | . . . . . . . . . . 86 . . . Parts Recycled . | . . . . . . . . . . . . . . Recycled Matter . | . . . . . . . . . . . . . . Retrieved Matter . | . . . . . . . . . . . . . . Retrieved Components 7 | . . . 7 . . . . . . . . . . Parts Scanalyzed . | . . . . . . . . . . . . . . Part Schematics Acquired . | . . . . . . . . . . . . . . Parts Damaged . | . . . . . . . . . . . . . . Bothacking | -11 -10 -9 -8 -7 -7 -7 -6 -5 -5 -4 -4 -4 -3 ------------ Run | Yrd Mat Mat Mat Fac Was Fac Fac Fac DSF Fac Was Fac Res Used RIF Installer . | . . . . . . . . . . . . . . Robots Hacked 2 | . . . . . . . . . . . . . 2 Non-combat . | . . . . . . . . . . . . . . Combat 2 | . . . . . . . . . . . . . 2 Robot Hacks Applied . | . . . . . . . . . . . . . . Relay Couplers Released . | . . . . . . . . . . . . . . Fabnet Peak Effective % 6 | . . . . . . . . . . . . . 6 Autooverrided 2 | . . . . . . . . . . . . . 2 Robots Rewired . | . . . . . . . . . . . . . . Allies Hacked 5 | . . . . . . . . . . . . 4 1 Hacks Repelled . | . . . . . . . . . . . . . . Allies | -11 -10 -9 -8 -7 -7 -7 -6 -5 -5 -4 -4 -4 -3 -------- Run | Yrd Mat Mat Mat Fac Was Fac Fac Fac DSF Fac Was Fac Res Total Allies 41 | . . . . . 18 . . . . . 20 . 3 Largest Group 20 | . . . . . 18 11 5 5 5 . 20 20 2 Highest-Rated Group 674 | . . . . . 444 325 141 141 141 . 674 673 146 Highest-Rated Ally 82 | . . . . . 35 35 31 31 31 . 46 46 82 Initial Warlord ECA Mod 9 | . . . . . . . . . . 9 9 9 8 Total Orders . | . . . . . . . . . . . . . . Ally Attacks 386 | . . . . . 110 112 12 . 3 . . 139 10 Total Damage 8853 | . . . . . 3764 1965 189 . 42 . . 2641 252 Kills 52 | . . . . . 10 18 4 . 1 . . 18 1 Allies Corrupted 4 | . . . . . . 1 . . . . . 3 . Allies Melted 2 | . . . . . . 1 . . . . . . 1 Intel | -11 -10 -9 -8 -7 -7 -7 -6 -5 -5 -4 -4 -4 -3 ------- Run | Yrd Mat Mat Mat Fac Was Fac Fac Fac DSF Fac Was Fac Res Active Infowar (turns) 181 | . . 103 78 . . . . . . . . . . Sensors 103 | . . 103 . . . . . . . . . . . Terrain 82 | . . 4 78 . . . . . . . . . . Robot Analysis Total . | . . . . . . . . . . . . . . Derelict Logs Recovered . | . . . . . . . . . . . . . . Drone Launches . | . . . . . . . . . . . . . . Drone Recoveries . | . . . . . . . . . . . . . . Exploration | -11 -10 -9 -8 -7 -7 -7 -6 -5 -5 -4 -4 -4 -3 ------------- Run | Yrd Mat Mat Mat Fac Was Fac Fac Fac DSF Fac Was Fac Res Turns Passed 6913 | 17 55 202 987 385 496 435 267 144 400 723 609 1010 1183 Spaces Moved 4547 | 27 96 222 582 272 390 342 196 122 209 470 385 648 586 Core 619 | 27 96 222 84 . . . . . . 139 18 . 33 Treads 77 | . . . 77 . . . . . . . . . . Legs 3755 | . . . 421 272 390 342 196 122 209 331 367 648 457 Wheels 89 | . . . . . . . . . . . . . 89 Hover . | . . . . . . . . . . . . . . Flight 7 | . . . . . . . . . . . . . 7 Fastest Speed 40 | 50 50 50 50 105 105 105 105 105 105 50 50 126 40 Average Speed 112 | 50 50 50 124 105 105 105 105 106 119 108 125 126 129 Slowest Speed 245 | 50 50 50 190 105 105 105 105 175 175 245 150 126 190 Overloaded Moves . | . . . . . . . . . . . . . . Propulsion Burnouts . | . . . . . . . . . . . . . . Robots Hopped 1 | . . . . . . . . . . . . . 1 Potential Cave-ins . | . . . . . . . . . . . . . . Cave-ins Triggered 1 | . . . . . . . . . . . . . 1 Exploration Rate (%) 33 | 3 29 25 40 10 97 16 10 4 92 17 96 19 12 Regions Visited 13 Branch Regions . Pre-discovered Areas . | . . . . . . . . . . . . . . Known Exits Taken 2 | . . 1 . . . . . 1 . . . . . Unknown Exits Taken 6 | 1 1 . 1 . . 1 1 . . . . 1 . Scrap Searched . | . . . . . . . . . . . . . . Spaces Dug 13 | . . 1 3 6 . 1 . . . . . 2 . Terrain Destroyed 514 | . . 1 80 29 12 1 53 . 43 89 1 81 124 Melee 10 | . . 1 3 6 . . . . . . . . . Projectile 85 | . . . . . . 1 1 . . 27 1 48 7 AOE 415 | . . . 77 23 12 . 52 . 43 62 . 33 113 Terrain Rammed . | . . . . . . . . . . . . . . Walls Destroyed . | . . . . . . . . . . . . . . Machines Disabled . | . . . . . . . . . . . . . . Actions | -11 -10 -9 -8 -7 -7 -7 -6 -5 -5 -4 -4 -4 -3 --------- Run | Yrd Mat Mat Mat Fac Was Fac Fac Fac DSF Fac Was Fac Res Total 5628 | 28 101 259 741 326 471 388 231 136 296 613 486 759 793 Wait 225 | . . 2 15 5 51 8 14 9 5 55 38 5 18 Move 4534 | 26 95 221 581 272 389 341 195 121 208 470 384 647 584 Hop 1 | . . . . . . . . . . . . . 1 Pick Up 86 | . 5 . 23 4 4 4 3 1 3 3 1 16 19 Fast Attach 134 | 2 1 6 20 3 9 5 2 . 18 14 18 16 20 Attach 49 | . . . 4 2 4 . 2 3 4 7 2 3 18 Detach 22 | . . . . . 3 . . 2 4 4 4 2 3 Swap 60 | . . . 12 7 2 1 2 . 5 6 3 10 12 Drop 155 | . . 1 28 10 7 10 3 . 16 16 9 28 27 Fire 276 | . . . 39 15 2 19 9 . 28 38 10 32 84 Melee 55 | . . 29 18 8 . . . . . . . . . Ram 7 | . . . . . . . . . . . . . 7 Kick 15 | . . . 1 . . . 1 . . . 13 . . Crush . | . . . . . . . . . . . . . . Escape Stasis 5 | . . . . . . . . . 5 . . . . Rewire 4 | . . . . . . . . . . . 4 . . Trap . | . . . . . . . . . . . . . . Miscellaneous . | . . . . . . . . . . . . . . Route ------- -11/Scrapyard -10/Materials -9/Materials -8/Materials -7/Factory (discovered 2 exits: Low x2) -7/Waste -7/Factory -6/Factory -5/Factory -5/DSF -4/Factory -4/Waste -4/Factory (discovered 2 exits: *Res x2) -3/Research History --------- Turn | Location | Event 8 | -11/Scrapyard | Discovered new exit (range 15) 18 | -11/Scrapyard | Entered Materials 65 | -10/Materials | Discovered new exit (range 16) 73 | -10/Materials | Entered another Materials area 73 | -9/Materials | Evolved 2 slots: Utility x1, Weapon x1 214 | -9/Materials | Destroyed 7 combat bots 218 | -9/Materials | Core integrity fell below 50% 248 | -9/Materials | Lost 4 parts (1p2n1u) 268 | -9/Materials | Discovered new exit (range 15) 275 | -9/Materials | Identified exit to Materials 275 | -9/Materials | Entered another Materials area 275 | -8/Materials | Evolved 2 slots: Weapon x2 310 | -8/Materials | Build established: Mutant 691 | -8/Materials | Lost 5 parts (1p1u3w) 1056 | -8/Materials | Build established: Bomber 1211 | -8/Materials | Discovered new exit (range 16) 1262 | -8/Materials | Entered Factory 1262 | -7/Factory | Evolved 2 slots: Propulsion x1, Utility x1 1337 | -7/Factory | Identified exit to Lower Caves 1626 | -7/Factory | Garrison activated, responded to threat 1647 | -7/Factory | Sucked down chute 1647 | -7/Factory | Entered Waste 1656 | -7/Waste | Spotted C-40 Crusher 1659 | -7/Waste | Spotted C-40 Crusher 1673 | -7/Waste | Spotted C-40 Crusher 1673 | -7/Waste | Crushed by Compactor (1 part destroyed, 1 dropped) 1675 | -7/Waste | Spotted C-40 Crusher 1676 | -7/Waste | Crushed by Compactor (1 part destroyed, 2 dropped) 1683 | -7/Waste | Spotted C-40 Crusher 1684 | -7/Waste | Crushed by Compactor (1 part destroyed, 1 dropped) 1709 | -7/Waste | Spotted C-40 Crusher 1715 | -7/Waste | Lost 3 parts (2n1w) 1721 | -7/Waste | Warlord forces began an assault 1733 | -7/Waste | Allies destroyed C-40 Crusher 1733 | -7/Waste | Allies destroyed C-40 Crusher 1748 | -7/Waste | Destroyed C-40 Crusher 1776 | -7/Waste | Lost 7 allies 1992 | -7/Waste | Found Prototype Launcher 1992 | -7/Waste | Identified Scatter Rocket Array 2041 | -7/Waste | Discovered new exit (range 12) 2143 | -7/Waste | Entered Factory 2143 | -7/Factory | Accompanied by 11 allies 2539 | -7/Factory | Discovered new exit (range 16) 2543 | -7/Factory | First assault squad dispatched 2562 | -7/Factory | Lost 3 allies 2578 | -7/Factory | Entered another Factory area 2578 | -6/Factory | Accompanied by 5 allies 2578 | -6/Factory | Evolved 2 slots: Utility x2 2620 | -6/Factory | Build established: Gunner 2818 | -6/Factory | Discovered new exit (range 3) 2845 | -6/Factory | Entered another Factory area 2845 | -5/Factory | Accompanied by 5 allies 2845 | -5/Factory | Evolved 2 slots: Power x1, Utility x1 2980 | -5/Factory | Identified exit to DSF 2989 | -5/Factory | Entered DSF 2989 | -5/DSF | Accompanied by 5 allies 3014 | -5/DSF | Additional patrols routed to DSF 3075 | -5/DSF | Lost 5 allies 3105 | -5/DSF | Lost 10 parts (2n4u4w) 3246 | -5/DSF | Sterilization system engaged 3266 | -5/DSF | Ambient heat levels rising (+10) 3274 | -5/DSF | Discovered new exit (range 16) 3281 | -5/DSF | Ambient heat levels rising (+10) 3296 | -5/DSF | Ambient heat levels rising (+10) 3311 | -5/DSF | Ambient heat levels rising (+10) 3326 | -5/DSF | Ambient heat levels rising (+10) 3341 | -5/DSF | Ambient heat levels rising (+10) 3356 | -5/DSF | Ambient heat levels rising (+10) 3371 | -5/DSF | Ambient heat levels rising (+10) 3386 | -5/DSF | Ambient heat levels rising (+10) 3389 | -5/DSF | Entered Factory 3389 | -4/Factory | Evolved 2 slots: Propulsion x1, Utility x1 3728 | -4/Factory | Repaired Broken Railgun 3877 | -4/Factory | Build established: Scavenger-Gunner 4029 | -4/Factory | System corruption reached 10% 4071 | -4/Factory | Lost 17 parts (2p4n5u6w) 4093 | -4/Factory | Core integrity fell below 50% 4112 | -4/Factory | Sucked down chute 4112 | -4/Factory | Entered Waste 4113 | -4/Waste | Joined by Warlord forces that had cleared the area 4272 | -4/Waste | Found Damper Plating 4478 | -4/Waste | Discovered new exit (range 16) 4721 | -4/Waste | Entered Factory 4721 | -4/Factory | Accompanied by 20 allies 5003 | -4/Factory | Lost 3 allies 5148 | -4/Factory | Lost 3 allies 5196 | -4/Factory | Lost 3 allies 5317 | -4/Factory | Discovered new exit (range 5) 5512 | -4/Factory | Found Prototype Processor 5512 | -4/Factory | Identified Exp. Signal Interpreter 5527 | -4/Factory | Found Exp. Signal Interpreter 5673 | -4/Factory | Discovered new exit (range 15) 5731 | -4/Factory | Entered Research 5731 | -3/Research | Accompanied by 1 ally 5731 | -3/Research | Evolved 2 slots: Utility x2 6004 | -3/Research | Crushed by falling debris 6038 | -3/Research | Destroyed 9 combat bots 6045 | -3/Research | Spotted B-86 Titan 6064 | -3/Research | Destroyed B-86 Titan 6110 | -3/Research | Found Hvy. Reflective Plating 6251 | -3/Research | Lost 3 parts (2u1w) 6332 | -3/Research | Local machine network offline 6440 | -3/Research | Lost 6 parts (2u4w) 6838 | -3/Research | System corruption reached 10% 6844 | -3/Research | Core integrity fell below 50% 6882 | -3/Research | Core integrity fell below 20% 6914 | -3/Research | Destroyed by Y-72 Warden with Quantum Rifle Last Messages --------------- corruption cleaned. 06883_ Slug penetrates H-77 Assassin. 06883_ Railgun destroyed. 06883_ Penetrated by Slug. 06883_ Railgun destroyed. 06884_ Wall collapses. 06884_ Penetrated by Slug. 06884_ Railgun destroyed. 06885_ Penetrated by Slug. 06886_ Slug penetrates Wall. 06887_ M-28 Smith repairs H-77 Assassin. 06888_ Slug penetrates Wall. 06892_ Acquired 76 matter. 06893_ Acquired 135 matter. 06894_ Slammed into U-05 Engineer. 06895_ System corrupted: Heat flow error (+250). 06895_ Slammed into U-05 Engineer. 06910_ CM|ZNO9PF /%